bitfinex/quotes_ETHUSD_20230404
["timestamp","ask_amount","ask_price","bid_price","bid_amount"]
[1680611568989,0.50475214,1869.7,1869.6,0.65293401]
[1680611569809,0.50475214,1869.7,1869.6,0.65893401]
[1680611570022,8.847,1870.0,1869.6,0.65893401]
[1680611570206,2.76602218,1869.9,1869.6,0.65893401]
[1680611571740,2.76602218,1869.9,1869.6,0.92040741]
[1680611572841,3.218,1870.0,1869.6,0.92040741]
[1680611573028,5.98102218,1870.0,1869.6,0.92040741]
[1680611573248,5.98402218,1870.0,1869.6,0.92040741]
[1680611573454,0.003,1870.0,1869.7,2.003]
[1680611573651,3.215,1870.4,1869.8,1.69777]
[1680611573972,5.98102218,1870.3,1869.8,1.69777]
[1680611574124,5.98146467,1870.3,1870.0,0.6417]
[1680611574420,11.61046467,1870.3,1870.0,0.6417]
[1680611574625,11.61046467,1870.3,1870.0,1.49731]
[1680611574626,0.00044249,1870.3,1870.0,1.49731]
[1680611574824,3.215,1870.4,1870.0,1.6646187]
[1680611575053,5.98102218,1870.4,1870.0,1.6646187]
[1680611575267,5.98146467,1870.4,1870.0,1.6646187]
[1680611575676,2.76602218,1870.3,1870.0,1.6646187]
[1680611575975,5.98102218,1870.3,1870.0,0.21389]
[1680611576137,5.98146467,1870.3,1870.0,0.21389]
[1680611576767,5.98146467,1870.3,1869.9,0.21991]
[1680611577007,5.98146467,1870.3,1869.9,0.348021]
[1680611577171,5.98146467,1870.3,1869.9,0.561931]
[1680611578166,11.61046467,1870.3,1869.9,0.561931]
[1680611578473,11.61046467,1870.3,1869.9,0.989761]
[1680611578626,11.61046467,1870.3,1869.9,0.21991]
[1680611578823,11.61046467,1870.3,1869.9,0.21791]
[1680611579156,11.61046467,1870.3,1869.9,0.21591]
[1680611579358,11.61046467,1870.3,1869.8,0.006]
[1680611579678,4.37604647,1870.2,1869.8,0.21392]
[1680611579855,2.76602218,1870.1,1869.8,0.21392]
[1680611581384,5.98102218,1870.1,1869.8,0.21392]
[1680611581540,5.98146467,1870.1,1869.8,0.21392]
[1680611582091,0.4320528,1870.0,1869.8,0.21392]
[1680611582384,0.4320528,1870.0,1869.7,0.21992]
[1680611582385,3.19807498,1870.0,1869.7,0.21992]
[1680611583241,0.4320528,1870.0,1869.7,1.41352407]
[1680611583442,0.4320528,1870.0,1869.9,12.39759317]
[1680611583647,0.4320528,1870.0,1869.9,9.4588551]
[1680611583887,0.52444849,1870.7,1870.1,0.42776]
[1680611584039,0.52444849,1870.7,1870.1,0.76638417]
[1680611584040,0.02198814,1870.7,1870.1,0.76638417]
[1680611584237,0.02198814,1870.7,1870.1,0.21388]
[1680611584450,9.17025895,1870.7,1870.1,0.21388]
[1680611584686,9.08518144,1870.7,1870.1,0.21388]
[1680611584891,8.844,1870.5,1870.1,0.21388]
[1680611585187,5.98102218,1870.4,1870.1,0.21388]
[1680611585489,5.98846467,1870.4,1870.1,0.64166]
[1680611588448,6.51727247,1870.4,1870.1,0.64166]
[1680611589788,5.98846467,1870.4,1870.1,0.64166]
[1680611590298,2.77346467,1870.4,1870.1,0.64166]
[1680611590440,0.00744249,1870.5,1870.1,1.19416417]
[1680611590648,5.97402218,1870.5,1870.1,0.64166]
[1680611590857,5.98146467,1870.5,1870.1,0.64166]
[1680611591899,2.76602218,1870.4,1870.1,0.64166]
[1680611592141,3.48460222,1870.3,1870.1,0.64166]
[1680611592340,2.76602218,1870.2,1870.1,0.64166]
[1680611592636,0.00744249,1870.3,1870.1,0.64166]
[1680611592836,0.38368054,1870.4,1870.1,0.21388]
[1680611593047,2.76602218,1870.4,1870.0,12.72209976]
[1680611593333,2.76602218,1870.4,1870.1,0.21388]
[1680611593535,2.76602218,1870.4,1870.1,3.21388]
[1680611593949,2.76602218,1870.3,1870.0,11.95770559]
[1680611594093,2.76602218,1870.3,1870.1,0.21388]
[1680611594293,2.76602218,1870.3,1870.0,1.07799559]
[1680611594541,6.57216865,1870.3,1870.0,0.86410559]
[1680611594838,6.57216865,1870.3,1870.0,1.07799559]
[1680611594839,6.57561114,1870.3,1870.0,1.07799559]
[1680611595039,6.57961114,1870.3,1870.0,0.86410559]
[1680611595199,6.57961114,1870.3,1870.0,1.07800559]
[1680611595397,0.65796111,1870.2,1870.0,0.86410559]
[1680611595744,6.20402218,1870.1,1870.0,1.07799559]
[1680611595897,5.97446467,1870.1,1870.0,1.07799559]
[1680611596099,5.97446467,1870.1,1870.0,1.07800559]
[1680611597053,6.35791262,1870.1,1870.0,1.07800559]
[1680611597219,0.38389044,1870.1,1870.0,1.07800559]
[1680611597428,0.38344795,1870.1,1870.0,1.50580559]
[1680611597997,3.208,1870.3,1870.0,1.07800559]
[1680611598199,2.76602218,1870.2,1870.0,1.07800559]
[1680611598418,2.76602218,1870.2,1870.0,0.86410559]
[1680611599315,2.77302218,1870.2,1870.0,0.86410559]
[1680611599517,0.007,1870.2,1870.0,1.07799559]
[1680611599717,3.52998674,1870.3,1870.0,0.86410559]
[1680611599718,3.215,1870.3,1870.0,0.86410559]
[1680611599947,5.98102218,1870.3,1870.0,0.86410559]
[1680611600259,5.98146467,1870.3,1870.0,0.86410559]
[1680611600459,2.76602218,1870.2,1870.0,0.86410559]
[1680611600628,2.77302218,1870.2,1870.0,0.86410559]
[1680611600958,5.98102218,1870.2,1870.0,0.86410559]
[1680611601162,5.98146467,1870.2,1870.0,0.86410559]
[1680611601718,5.98146467,1870.2,1870.0,1.07800559]
[1680611601719,0.00744249,1870.2,1870.0,1.07800559]
[1680611602031,0.62713461,1870.3,1870.0,0.86410559]
[1680611602234,3.39315679,1870.3,1870.0,0.86410559]
[1680611602843,2.76602218,1870.2,1870.0,0.86410559]
[1680611603028,6.64113786,1870.2,1870.0,0.86410559]
[1680611603355,6.64158035,1870.2,1870.0,0.86410559]
[1680611603761,6.72713035,1870.2,1870.0,0.86410559]
[1680611604068,6.64158035,1870.2,1870.0,0.86410559]
[1680611605365,5.98146467,1870.2,1870.0,0.86410559]
[1680611607251,2.77346467,1870.2,1870.0,1.07800559]
[1680611607452,0.007,1870.2,1870.0,1.50580559]
[1680611607654,3.215,1870.3,1870.0,1.74194815]
[1680611607823,5.98102218,1870.3,1870.0,1.74194815]
[1680611608021,4.352,1870.1,1870.0,0.86410559]
[1680611608266,19.23468218,1870.1,1870.0,0.86410559]
[1680611608574,19.23912467,1870.1,1870.0,0.86410559]
[1680611608735,24.37712467,1870.1,1870.0,0.73305059]
[1680611608939,26.32825714,1870.1,1870.0,0.73305059]
[1680611609141,27.14778414,1870.1,1870.0,0.73305059]
[1680611609336,27.90445276,1870.1,1870.0,0.73305059]
[1680611609536,8.837,1869.9,1869.6,0.01110401]
[1680611609735,9.43602,1869.7,1869.6,0.01110401]
[1680611609973,12.43248467,1869.7,1869.6,0.01110401]
[1680611610471,12.09018467,1869.7,1869.6,0.01110401]
[1680611611049,12.11217281,1869.7,1869.6,0.01110401]
[1680611611247,30.71279009,1869.7,1869.6,0.01110401]
[1680611611451,33.71279009,1869.7,1869.6,0.01110401]
[1680611611950,34.08929085,1869.7,1869.6,0.01110401]
[1680611613158,35.22929085,1869.7,1869.6,0.01110401]
[1680611613480,35.22929085,1869.7,1869.5,0.01330301]
[1680611613481,9.337,1869.6,1869.5,0.01330301]
[1680611613683,18.21849467,1869.6,1869.5,0.01330301]
[1680611613888,24.2507564,1869.6,1869.5,0.01330301]
[1680611614087,25.15124287,1869.6,1869.5,0.01330301]
[1680611614804,24.65124287,1869.6,1869.5,0.01330301]
[1680611614956,14.835,1869.5,1869.4,0.1]
[1680611615160,28.51296896,1869.5,1869.4,0.1]
[1680611616108,28.88882958,1869.5,1869.4,0.05873329]
[1680611616301,30.78404394,1869.5,1869.4,0.00073329]
[1680611616505,32.22521984,1869.5,1869.4,0.00073329]
[1680611616654,32.76101984,1869.5,1869.4,0.00073329]
[1680611617095,11.537,1869.4,1869.3,0.1]
[1680611617280,22.55266665,1869.4,1869.3,0.1]
[1680611617606,27.29595876,1869.4,1869.3,0.1]
[1680611617991,27.62742135,1869.4,1869.3,0.1]
[1680611618354,27.62742135,1869.4,1868.8,0.1]
[1680611618355,8.837,1869.1,1868.8,0.1]
[1680611618560,16.59866281,1869.1,1868.8,0.1]
[1680611618856,18.73866281,1869.1,1868.8,0.1]
[1680611619605,18.73866281,1869.1,1869.0,0.05]
[1680611619761,21.41193109,1869.1,1869.0,0.05]
[1680611620999,20.03793109,1869.1,1869.0,0.05]
[1680611621202,14.89793109,1869.1,1869.0,0.05]
[1680611621904,14.55552109,1869.1,1869.0,0.05]
[1680611622104,15.69752109,1869.1,1869.0,0.05]
[1680611622263,15.92752109,1869.1,1869.0,0.05]
[1680611622673,18.92752109,1869.1,1869.0,0.05]
[1680611622968,19.55205222,1869.1,1869.0,0.05]
[1680611624605,6.5989958,1869.1,1869.0,0.05]
[1680611624807,0.62497362,1869.1,1869.0,0.26401]
[1680611625113,0.62453113,1869.1,1869.0,0.26401]
[1680611625406,0.62453113,1869.1,1869.0,0.05]
[1680611625610,3.83253113,1869.1,1869.0,0.05]
[1680611625809,6.59855331,1869.1,1869.0,0.05]
[1680611626012,6.5989958,1869.1,1869.0,0.056]
[1680611626468,7.34449538,1869.1,1869.0,0.056]
[1680611626666,13.20349538,1869.1,1869.0,0.05]
[1680611627081,13.37469538,1869.1,1869.0,0.05]
[1680611627683,16.37469538,1869.1,1869.0,0.05]
[1680611627883,16.37469538,1869.1,1868.8,0.1]
[1680611628198,8.92261,1868.9,1868.8,0.1]
[1680611628371,11.91907467,1868.9,1868.8,0.1]
[1680611628917,12.09029467,1868.9,1868.8,0.1]
[1680611629281,12.11228281,1868.9,1868.8,0.1]
[1680611629506,14.25228281,1868.9,1868.8,0.1]
[1680611629719,15.87550004,1868.9,1868.8,0.1]
[1680611629931,20.54797235,1868.9,1868.8,0.1]
[1680611630241,25.54797235,1868.9,1868.8,0.1]
[1680611630423,26.33305049,1868.9,1868.8,0.1]
[1680611630823,25.54797235,1868.9,1868.8,0.1]
[1680611631201,23.40797235,1868.9,1868.8,0.1]
[1680611631397,25.54797235,1868.9,1868.8,0.1]
[1680611632326,20.54797235,1868.9,1868.8,0.1]
[1680611632492,25.54797235,1868.9,1868.8,0.1]
[1680611633199,13.837,1868.7,1868.5,0.0554814]
[1680611633409,16.57439218,1868.6,1868.5,0.0554814]
[1680611633612,19.85883467,1868.6,1868.5,0.0554814]
[1680611633850,22.53346027,1868.6,1868.5,0.0554814]
[1680611634034,23.38971027,1868.6,1868.5,0.0554814]
[1680611634911,24.38771027,1868.6,1868.5,0.0554814]
[1680611635111,24.38771027,1868.6,1868.3,0.1]
[1680611635112,13.892,1868.5,1868.3,0.1]
[1680611635350,19.57475822,1868.4,1868.3,0.1]
[1680611635512,21.71720071,1868.4,1868.3,0.1]
[1680611635711,21.71520071,1868.4,1868.3,0.1]
[1680611635964,22.21580347,1868.4,1868.3,0.1]
[1680611636255,26.17726092,1868.4,1868.3,0.1]
[1680611636462,26.17926092,1868.4,1868.3,0.1]
[1680611637110,26.20124906,1868.4,1868.3,0.1]
[1680611638059,26.74839189,1868.4,1868.3,0.1]
[1680611638355,5.629,1868.0,1867.8,0.1]
[1680611638655,17.23198218,1867.9,1867.8,0.1]
[1680611638873,17.23242467,1867.9,1867.8,0.102]
[1680611639029,17.23242467,1867.9,1867.8,0.104]
[1680611639223,15.09042467,1867.9,1867.8,0.104]
[1680611639551,15.09042467,1867.9,1867.8,0.102]
[1680611639758,15.09042467,1867.9,1867.8,0.104]
[1680611640051,14.91911467,1867.9,1867.8,0.102]
[1680611640262,14.91911467,1867.9,1867.8,0.104]
[1680611640563,14.91911467,1867.9,1867.8,0.102]
[1680611640713,14.91911467,1867.9,1867.8,0.104]
[1680611641460,16.42815614,1867.9,1867.8,0.104]
[1680611641755,18.74146614,1867.9,1867.8,0.104]
[1680611641941,20.22809614,1867.9,1867.8,0.104]
[1680611642184,20.71986158,1867.9,1867.8,0.102]
[1680611642339,18.57786158,1867.9,1867.8,0.102]
[1680611642872,18.57786158,1867.9,1867.8,0.1]
[1680611643664,24.07958236,1867.9,1867.8,0.1]
[1680611643955,26.76240441,1867.9,1867.8,0.1]
[1680611644162,24.62040441,1867.9,1867.8,0.1]
[1680611644326,26.76240441,1867.9,1867.8,0.1]
[1680611645528,26.78439255,1867.9,1867.8,0.1]
[1680611645741,10.29331,1867.7,1867.6,0.1]
[1680611645930,16.34202363,1867.7,1867.6,0.1]
[1680611646141,21.48402363,1867.7,1867.6,0.1]
[1680611646465,26.50601177,1867.7,1867.6,0.1]
[1680611646944,26.50601177,1867.7,1867.5,5.374]
[1680611646945,11.00677016,1867.4,1867.3,0.00600001]
[1680611647147,15.88878297,1867.4,1867.3,1e-08]
[1680611647331,21.26078297,1867.4,1867.3,1e-08]
[1680611647535,21.26078297,1867.4,1866.6,0.1]
[1680611647536,8.837,1866.7,1866.6,0.1]
[1680611647870,8.837,1866.7,1866.0,1.006]
[1680611647871,9.09417,1866.4,1866.0,1.006]
[1680611648062,8.837,1866.2,1866.0,1.006]
[1680611648366,11.211,1866.1,1866.0,0.95]
[1680611648597,14.06320467,1866.1,1866.0,0.95]
[1680611649099,11.81920467,1866.1,1866.0,0.95]
[1680611649315,13.96320467,1866.1,1866.0,0.95]
[1680611649457,13.87746467,1866.1,1866.0,0.95]
[1680611649656,11.81920467,1866.1,1866.0,0.95]
[1680611650000,13.87746467,1866.1,1866.0,0.95]
[1680611650161,11.73346467,1866.1,1866.0,0.95]
[1680611651089,11.60346467,1866.1,1866.0,0.95]
[1680611652220,11.91920467,1866.1,1866.0,0.95]
[1680611652403,15.27673416,1866.1,1866.0,0.95]
[1680611652704,15.44821416,1866.1,1866.0,0.95]
[1680611653483,23.44821416,1866.1,1866.0,0.95]
[1680611653997,18.44821416,1866.1,1866.0,0.95]
[1680611654202,17.23468467,1866.1,1866.0,0.95]
[1680611654402,20.09068467,1866.1,1866.0,0.95]
[1680611654604,22.23468467,1866.1,1866.0,0.95]
[1680611655554,5.97446467,1866.1,1866.0,0.95]
[1680611655868,0.00744249,1866.1,1866.0,0.95]
[1680611656068,0.09272,1866.4,1866.0,1.34975158]
[1680611656288,5.97402218,1866.1,1866.0,0.95]
[1680611656468,5.97402218,1866.1,1866.0,1.95]
[1680611656469,5.98146467,1866.1,1866.0,1.95]
[1680611656667,11.60346467,1866.1,1866.0,0.95]
[1680611656907,11.60346467,1866.1,1866.0,1.95]
[1680611657219,12.15857402,1866.1,1866.0,1.95]
[1680611657705,12.38857402,1866.1,1866.0,1.95]
[1680611657912,12.38857402,1866.1,1866.0,0.95]
[1680611658400,12.15857402,1866.1,1866.0,0.95]
[1680611659602,13.46087142,1866.1,1866.0,0.95]
[1680611659770,18.83487142,1866.1,1866.0,0.95]
[1680611660100,19.00635142,1866.1,1866.0,0.95]
[1680611661606,16.86235142,1866.1,1866.0,0.95]
[1680611661808,19.00635142,1866.1,1866.0,0.95]
[1680611661992,17.78979402,1866.1,1866.0,0.95]
[1680611662173,17.79679402,1866.1,1866.0,0.95]
[1680611662364,15.65279402,1866.1,1866.0,0.95]
[1680611662713,17.78979402,1866.1,1866.0,0.95]
[1680611662863,17.79679402,1866.1,1866.0,0.95]
[1680611663061,15.65279402,1866.1,1866.0,0.95]
[1680611663262,15.64579402,1866.1,1866.0,0.95]
[1680611663704,17.78979402,1866.1,1866.0,0.95]
[1680611663902,20.10996724,1866.1,1866.0,0.95]
[1680611664103,20.11296724,1866.1,1866.0,0.95]
[1680611664587,20.10596724,1866.1,1866.0,0.95]
[1680611667075,20.11096724,1866.1,1866.0,0.95]
[1680611667345,20.11296724,1866.1,1866.0,0.95]
[1680611668988,19.55785789,1866.1,1866.0,0.95]
[1680611670312,16.84020467,1866.1,1866.0,0.95]
[1680611670607,11.61046467,1866.1,1866.0,0.95]
[1680611671518,11.60346467,1866.1,1866.0,0.95]
[1680611672203,11.60104091,1866.1,1866.0,0.95]
[1680611673995,11.60104091,1866.1,1866.0,1.95]
[1680611674399,11.60104091,1866.1,1866.0,0.95]
[1680611675000,11.83104091,1866.1,1866.0,0.95]
[1680611675385,11.60104091,1866.1,1866.0,0.95]
[1680611679004,11.85826091,1866.1,1866.0,0.95]
[1680611679318,6.06020467,1866.1,1866.0,0.95]
[1680611679617,5.97446467,1866.1,1866.0,0.95]
[1680611680421,11.60346467,1866.1,1866.0,0.95]
[1680611681622,13.85519281,1866.1,1866.0,0.95]
[1680611681827,15.42933909,1866.1,1866.0,0.95]
[1680611681985,15.48785909,1866.1,1866.0,0.95]
[1680611682186,15.65933909,1866.1,1866.0,0.95]
[1680611682400,15.48785909,1866.1,1866.0,0.95]
[1680611682605,15.65933909,1866.1,1866.0,0.95]
[1680611684033,13.51533909,1866.1,1866.0,0.95]
[1680611684333,11.60346467,1866.1,1866.0,0.95]
[1680611684737,3.29418249,1866.1,1866.0,0.95]
[1680611684905,3.29374,1866.1,1866.0,0.95]
[1680611685999,0.08574,1866.1,1866.0,0.95]
[1680611686312,3.20844249,1866.3,1866.0,0.95]
[1680611686636,3.208,1866.3,1866.0,1.14875158]
[1680611686930,3.20844249,1866.4,1866.0,1.14875158]
[1680611687239,3.208,1866.2,1866.0,1.14875158]
[1680611687393,3.29373,1866.2,1866.0,0.956]
[1680611687593,6.05975218,1866.2,1866.0,0.956]
[1680611687912,6.23166467,1866.2,1866.0,0.956]
[1680611688935,11.60302218,1866.1,1866.0,0.95]
[1680611689139,11.60346467,1866.1,1866.0,0.95]
[1680611690062,12.60346467,1866.1,1866.0,0.95]
[1680611691771,1.00044249,1866.1,1866.0,1.50250417]
[1680611691924,1.00044249,1866.1,1866.0,1.77875626]
[1680611691925,1.0,1866.1,1866.0,1.77875626]
[1680611692124,3.144,1866.1,1866.0,2.22142633]
[1680611693270,3.144,1866.1,1866.0,1.78475626]
[1680611693429,6.352,1866.1,1866.0,2.35061079]
[1680611693624,14.74746467,1866.1,1866.0,2.35061079]
[1680611693826,14.74746467,1866.1,1866.0,2.07488469]
[1680611694165,14.74746467,1866.1,1866.0,3.46949548]
[1680611694166,9.11846467,1866.1,1866.0,3.46949548]
[1680611694367,9.11846467,1866.1,1866.0,2.07488469]
[1680611694553,9.11846467,1866.1,1866.0,2.06888469]
[1680611696866,9.20420467,1866.1,1866.0,2.06888469]
[1680611697072,9.20136206,1866.1,1866.0,2.06888469]
[1680611697257,9.11562206,1866.1,1866.0,2.06888469]
[1680611698456,6.34959988,1866.1,1866.0,2.06888469]
[1680611698832,6.60681988,1866.1,1866.0,2.06888469]
[1680611699075,6.60681988,1866.1,1866.0,1.78970041]
[1680611699287,6.43533988,1866.1,1866.0,1.78970041]
[1680611699434,6.34959988,1866.1,1866.0,1.78970041]
[1680611699782,6.34959988,1866.1,1866.0,2.9085851]
[1680611700334,3.14159988,1866.1,1866.0,3.34345627]
[1680611700666,0.99715739,1866.1,1866.0,2.50575586]
[1680611700833,0.99715739,1866.1,1866.0,2.50375586]
[1680611701035,0.99715739,1866.1,1866.0,3.89836665]
[1680611701235,0.99715739,1866.1,1866.0,3.90436665]
[1680611701435,0.99715739,1866.1,1866.0,4.11872665]
[1680611701882,0.99715739,1866.1,1866.0,2.99984196]
[1680611702368,3.20844249,1866.3,1866.0,4.99884196]
[1680611702369,0.00044249,1866.3,1866.0,4.99884196]
[1680611702566,0.00044249,1866.3,1866.2,3.001]
[1680611702768,3.208,1867.0,1866.2,4.50735]
[1680611702970,3.208,1867.0,1866.6,0.55952459]
[1680611703350,3.208,1867.0,1866.5,1.61311147]
[1680611703351,4.28202117,1867.0,1866.5,1.61311147]
[1680611703688,4.28202117,1867.0,1866.6,0.55952459]
[1680611703689,9.91102117,1867.0,1866.6,0.55952459]
[1680611703838,9.91846366,1867.0,1866.6,0.77381459]
[1680611704040,3.208,1866.8,1866.6,0.77381459]
[1680611704291,3.208,1866.8,1866.6,0.97798474]
[1680611704456,3.208,1866.8,1866.7,0.77380459]
[1680611704644,3.208,1866.8,1866.7,0.55952459]
[1680611705028,3.208,1866.8,1866.7,0.77380459]
[1680611705192,3.21544249,1866.9,1866.7,0.21428]
[1680611705485,5.97402218,1866.9,1866.7,0.21428]
[1680611705649,5.97446467,1866.9,1866.7,0.21428]
[1680611706077,3.70722894,1866.8,1866.7,0.21428]
[1680611706393,3.70722894,1866.8,1866.4,14.48867917]
[1680611706394,15.25573048,1866.8,1866.4,0.004]
[1680611706686,15.25573048,1866.8,1866.3,0.004]
[1680611706687,10.849,1866.6,1866.2,0.55918488]
[1680611706990,3.208,1866.4,1866.2,0.55918488]
[1680611707141,6.06674218,1866.4,1866.1,11.37788488]
[1680611707336,8.20918467,1866.4,1866.1,11.37588488]
[1680611707880,6.06718467,1866.4,1866.1,0.55918488]
[1680611708084,6.23863467,1866.4,1866.1,0.55918488]
[1680611708239,8.38063467,1866.4,1866.1,0.55918488]
[1680611708436,6.23863467,1866.4,1866.1,0.55918488]
[1680611708654,8.38063467,1866.4,1866.1,0.55918488]
[1680611709065,8.38063467,1866.4,1866.1,0.55639293]
[1680611709301,6.23863467,1866.4,1866.1,0.55639293]
[1680611709474,6.76249532,1866.4,1866.1,0.55639293]
[1680611709816,8.21804367,1866.4,1866.1,0.55639293]
[1680611710154,10.10287367,1866.4,1866.1,0.55639293]
[1680611710396,8.04659367,1866.4,1866.1,0.55639293]
[1680611710598,6.59104532,1866.4,1866.1,0.55639293]
[1680611710900,6.76249532,1866.4,1866.1,0.55639293]
[1680611711686,8.90449532,1866.4,1866.1,0.55639293]
[1680611712324,8.90449532,1866.4,1865.8,10.8227]
[1680611712325,3.208,1866.0,1865.8,1.11912283]
[1680611712602,3.208,1866.0,1865.6,0.004]
[1680611712603,3.80829,1865.7,1865.6,0.004]
[1680611712806,12.20331218,1865.7,1865.3,1.11912283]
[1680611713011,3.208,1865.5,1865.3,1.11912283]
[1680611713301,6.23133218,1865.4,1865.3,1.11912283]
[1680611713510,6.23177467,1865.4,1865.3,1.11912283]
[1680611714009,6.23177467,1865.4,1865.2,2.51802637]
[1680611714303,6.23177467,1865.4,1865.2,1.11912283]
[1680611714609,6.23177467,1865.4,1865.3,1.11912283]
[1680611714906,0.00044249,1865.4,1865.3,1.11912283]
[1680611715111,0.25731,1865.4,1865.3,1.11912283]
[1680611715307,0.25731,1865.4,1865.3,0.83976637]
[1680611715612,6.23133218,1865.4,1865.2,1.9588892]
[1680611715906,6.05979218,1865.3,1865.2,0.83976637]
[1680611716075,6.06023467,1865.3,1865.2,0.83976637]
[1680611719311,2.76602218,1865.3,1865.2,0.83976637]
[1680611719461,2.77346467,1865.4,1865.2,0.83976637]
[1680611719661,2.76602218,1865.4,1865.2,0.83976637]
[1680611719862,0.00744249,1865.5,1865.2,0.83976637]
[1680611720061,0.08577,1865.4,1865.2,0.83976637]
[1680611720357,3.29377,1865.4,1865.2,0.83976637]
[1680611720575,0.08577,1865.4,1865.2,0.83976637]
[1680611720779,0.08577,1865.4,1865.2,1.03565529]
[1680611721622,0.53227331,1865.6,1865.2,1.03565529]
[1680611721780,0.00244249,1865.7,1865.5,3.011]
[1680611721963,0.55872763,1866.2,1865.5,3.85076637]
[1680611722166,0.55872763,1866.2,1865.7,1.149]
[1680611722366,2.76602218,1866.1,1865.7,1.70758337]
[1680611722600,0.004,1866.1,1865.8,0.17075834]
[1680611722915,0.08573,1866.3,1865.8,0.17075834]
[1680611723209,2.85175218,1866.3,1865.8,0.17075834]
[1680611723406,6.05975218,1866.3,1865.8,0.17075834]
[1680611723562,6.06719467,1866.3,1865.8,0.17075834]
[1680611723800,6.06719467,1866.3,1865.8,0.38513834]
[1680611724118,6.06719467,1866.3,1865.8,0.17075834]
[1680611724745,6.23865467,1866.3,1865.8,0.17075834]
[1680611724930,6.06019467,1866.3,1865.8,0.72934171]
[1680611725135,6.06019467,1866.3,1865.9,0.07293417]
[1680611725859,3.208,1866.2,1865.8,0.72934171]
[1680611726408,3.29373,1866.2,1865.8,0.72934171]
[1680611726813,3.208,1866.2,1865.8,0.72934171]
[1680611727020,3.29373,1866.2,1865.8,0.55858337]
[1680611727433,2.79373,1866.2,1865.8,0.55858337]
[1680611728153,2.708,1866.2,1865.8,0.55858337]
[1680611728504,2.79373,1866.2,1865.8,0.55858337]
[1680611728907,2.93792467,1866.3,1866.0,1.144]
[1680611728908,0.00044249,1866.3,1866.0,1.144]
[1680611729108,0.6561406,1866.4,1866.1,0.75745]
[1680611729347,0.13227995,1866.4,1866.1,0.32875]
[1680611730662,5.97402218,1866.3,1866.0,0.55858337]
[1680611730819,5.97446467,1866.3,1865.9,0.77894337]
[1680611731019,5.97446467,1866.3,1865.8,0.77895337]
[1680611731222,5.97446467,1866.3,1865.8,1.69305771]
[1680611731223,6.06019467,1866.3,1865.8,1.69305771]
[1680611731456,6.06019467,1866.3,1865.8,1.40434974]
[1680611731657,6.06019467,1866.3,1865.8,0.55858337]
[1680611731955,3.208,1866.1,1865.7,0.56458337]
[1680611732111,5.97402218,1866.0,1865.7,0.56458337]
[1680611732312,6.06020467,1866.0,1865.7,0.56458337]
[1680611732817,6.06020467,1866.0,1865.7,0.006]
[1680611733118,0.79270127,1865.9,1865.7,0.006]
[1680611733337,4.25794127,1865.9,1865.7,0.006]
[1680611733547,4.08645127,1865.9,1865.7,0.006]
[1680611733851,4.08645127,1865.9,1865.7,0.004]
[1680611734054,4.08645127,1865.9,1865.6,0.56458337]
[1680611734215,4.08645127,1865.9,1865.6,0.55858337]
[1680611735357,2.76602218,1865.8,1865.6,0.55858337]
[1680611735551,3.208,1865.7,1865.6,0.55858337]
[1680611736022,3.208,1865.7,1865.3,4.127997]
[1680611736215,3.30075,1865.7,1865.2,5.22344]
[1680611736421,3.215,1865.7,1865.3,3.0]
[1680611736841,3.215,1865.7,1865.2,3.94964585]
[1680611737064,3.30075,1865.7,1865.2,3.21444]
[1680611737365,3.215,1865.7,1865.2,0.21444]
[1680611737516,0.007,1865.7,1865.2,0.21444]
[1680611737722,0.007,1865.9,1865.2,3.575486]
[1680611737946,0.007,1865.9,1865.2,3.51115]
[1680611738531,0.007,1865.9,1865.3,1.0]
[1680611738732,0.007,1865.9,1865.4,0.21442]
[1680611738937,0.007,1865.9,1865.4,0.764722]
[1680611740143,0.09274,1866.0,1865.4,0.764722]
[1680611740325,0.007,1866.0,1865.4,0.764722]
[1680611740556,5.97402218,1865.9,1865.4,0.335862]
[1680611740754,5.98146467,1865.9,1865.4,0.335862]
[1680611740970,5.98146467,1865.9,1865.4,0.764722]
[1680611741121,5.98146467,1865.9,1865.4,0.335862]
[1680611741770,5.98146467,1865.9,1865.4,0.764722]
[1680611741940,6.59038395,1865.9,1865.4,0.335862]
[1680611742136,6.59038395,1865.9,1865.4,0.335872]
[1680611742450,6.59038395,1865.9,1865.4,0.20843]
[1680611743775,0.00744249,1865.9,1865.5,1.0]
[1680611743944,3.215,1866.2,1865.6,2.50083]
[1680611744142,5.97402218,1866.1,1865.6,3.61785364]
[1680611744469,5.97402218,1866.1,1865.7,0.36178536]
[1680611744470,5.98146467,1866.1,1865.7,0.36178536]
[1680611744628,5.98146467,1866.1,1865.7,0.57616536]
[1680611745053,3.21544249,1866.1,1865.7,1.84276398]
[1680611745258,3.215,1866.1,1865.7,1.84276398]
[1680611746123,0.007,1866.1,1865.8,0.55848042]
[1680611746325,0.007,1866.1,1865.8,0.77285042]
[1680611746979,0.73260415,1866.0,1865.8,0.77285042]
[1680611747543,0.73260415,1866.0,1865.8,2.27955248]
[1680611748378,0.73260415,1866.0,1865.9,0.55848042]
[1680611748539,0.73260415,1866.0,1865.9,0.77285042]
[1680611748940,0.73260415,1866.0,1865.8,1.63641248]
[1680611749355,0.73260415,1866.0,1865.8,1.85079248]
[1680611749770,0.73260415,1866.0,1865.8,2.27956248]
[1680611750483,0.73260415,1866.0,1865.9,0.55848042]
[1680611750635,0.73260415,1866.0,1865.9,0.77285042]
[1680611751033,0.73260415,1866.0,1865.9,1.00080567]
[1680611752337,0.73260415,1866.0,1865.9,1.83861429]
[1680611753683,0.73260415,1866.0,1865.9,1.28013387]
[1680611754872,0.73260415,1866.0,1865.9,1.83926357]
[1680611755479,0.73260415,1866.0,1865.9,1.28013387]
[1680611755784,0.73260415,1866.0,1865.9,1.05217862]
[1680611756146,0.73260415,1866.0,1865.9,1.48091862]
[1680611757851,0.73260415,1866.0,1865.9,1.47272492]
[1680611758359,0.73260415,1866.0,1865.9,1.75193994]
[1680611758942,1.59307001,1866.3,1865.9,1.75193994]
[1680611759149,0.13227995,1866.4,1866.1,0.5589562]
[1680611759351,0.13227995,1866.4,1866.2,0.21433]
[1680611759689,3.208,1866.7,1866.2,0.7732862]